bitfinex/quotes_BTCUSD_20241010
["timestamp","ask_amount","ask_price","bid_price","bid_amount"]
[1728548442530,0.001636,60959.0,60950.0,0.72305802]
[1728548443001,0.001636,60959.0,60950.0,0.80075802]
[1728548443520,0.001636,60959.0,60950.0,0.81275802]
[1728548443752,0.001636,60959.0,60950.0,0.78475802]
[1728548444217,0.001636,60959.0,60950.0,0.81275802]
[1728548444450,0.001636,60959.0,60950.0,0.79875802]
[1728548444680,0.001636,60959.0,60950.0,0.78475802]
[1728548444910,0.001636,60959.0,60950.0,0.81275802]
[1728548445585,0.001636,60959.0,60950.0,0.87840502]
[1728548446169,0.001636,60959.0,60950.0,0.86440502]
[1728548446656,0.001636,60959.0,60950.0,0.87840502]
[1728548455453,0.001636,60959.0,60950.0,0.80070502]
[1728548460774,0.001636,60959.0,60950.0,0.67831308]
[1728548461025,0.001636,60959.0,60950.0,0.80070502]
[1728548464089,0.001636,60959.0,60950.0,0.87670502]
[1728548465320,0.001636,60959.0,60950.0,0.87870502]
[1728548466794,0.001636,60959.0,60950.0,0.87670502]
[1728548467264,0.001636,60963.0,60962.0,0.00494186]
[1728548467749,0.14707041,60978.0,60962.0,0.00494186]
[1728548467750,0.2483382,60974.0,60973.0,0.29194886]
[1728548468016,0.2483382,60974.0,60973.0,0.4547865]
[1728548468257,0.001636,60987.0,60973.0,0.4547865]
[1728548468258,0.001636,60987.0,60986.0,0.263972]
[1728548468524,0.01698417,60987.0,60986.0,0.40936394]
[1728548468768,0.01698417,60987.0,60986.0,0.27871968]
[1728548469007,0.11268417,60987.0,60986.0,0.27871968]
[1728548469474,0.11268417,60987.0,60986.0,0.28871968]
[1728548469725,0.11268417,60987.0,60986.0,0.30171968]
[1728548469963,0.11268417,60987.0,60986.0,0.28871968]
[1728548470464,0.11268417,60987.0,60986.0,0.29371968]
[1728548470947,0.11268417,60987.0,60986.0,0.28371968]
[1728548471207,0.11268417,60987.0,60986.0,0.28771968]
[1728548471433,0.10668417,60987.0,60986.0,0.28771968]
[1728548472591,0.0957,60987.0,60986.0,0.28771968]
[1728548473998,0.097334,60987.0,60986.0,0.28771968]
[1728548474980,0.103334,60987.0,60986.0,0.28771968]
[1728548476191,0.103334,60987.0,60986.0,0.28271968]
[1728548476662,0.103334,60987.0,60986.0,0.29171968]
[1728548476911,0.103334,60987.0,60986.0,0.27871968]
[1728548477153,0.103334,60987.0,60986.0,0.29171968]
[1728548478088,0.103334,60987.0,60986.0,0.28471968]
[1728548478321,0.103334,60987.0,60986.0,0.27871968]
[1728548478551,0.103334,60987.0,60986.0,0.28371968]
[1728548478774,0.103334,60987.0,60986.0,0.28871968]
[1728548479508,0.103334,60987.0,60986.0,0.28371968]
[1728548480001,0.103334,60987.0,60986.0,0.28971968]
[1728548481915,0.007634,60987.0,60986.0,0.28971968]
[1728548482613,0.007634,60987.0,60986.0,0.31271968]
[1728548483370,0.007634,60987.0,60986.0,0.30671968]
[1728548483600,0.007634,60987.0,60986.0,0.31171968]
[1728548483861,0.007634,60987.0,60986.0,0.31971968]
[1728548484371,0.007634,60987.0,60986.0,0.31171968]
[1728548484834,0.007634,60987.0,60986.0,0.31071968]
[1728548485291,0.007634,60987.0,60986.0,0.32171968]
[1728548485991,0.007634,60987.0,60986.0,0.31071968]
[1728548486237,0.007634,60987.0,60986.0,0.21071968]
[1728548486482,0.007634,60987.0,60986.0,0.31571968]
[1728548486778,0.087834,60987.0,60986.0,0.30171968]
[1728548487024,0.087834,60987.0,60986.0,0.31271968]
[1728548487500,0.087834,60987.0,60986.0,0.30171968]
[1728548487733,0.087834,60987.0,60986.0,0.31071968]
[1728548487994,0.087834,60987.0,60986.0,0.28771968]
[1728548488223,0.087834,60987.0,60986.0,0.29271968]
[1728548488465,0.087834,60987.0,60986.0,0.28271968]
[1728548488705,0.087834,60987.0,60986.0,0.28771968]
[1728548488935,0.087834,60987.0,60986.0,0.28271968]
[1728548489394,0.087834,60987.0,60986.0,0.28671968]
[1728548489628,0.21022594,60987.0,60986.0,0.27871968]
[1728548489860,0.21022594,60987.0,60986.0,0.28171968]
[1728548489861,0.087834,60987.0,60986.0,0.28171968]
[1728548490101,0.087834,60987.0,60986.0,0.28471968]
[1728548490579,0.087834,60987.0,60986.0,0.28171968]
[1728548490819,0.087834,60987.0,60986.0,0.18271968]
[1728548491298,0.087834,60987.0,60986.0,0.17971968]
[1728548494730,0.087834,60987.0,60986.0,0.17871968]
[1728548494980,0.087834,60987.0,60986.0,0.17971968]
[1728548495483,0.087834,60987.0,60986.0,0.17871968]
[1728548495703,0.087834,60987.0,60986.0,0.17971968]
[1728548497495,0.007634,60987.0,60986.0,0.18253668]
[1728548497936,0.007634,60987.0,60986.0,0.18053668]
[1728548498226,0.007634,60987.0,60986.0,0.18253668]
[1728548498421,0.007634,60987.0,60986.0,0.18153668]
[1728548498708,0.007634,60987.0,60986.0,0.18453668]
[1728548498950,0.007634,60987.0,60986.0,0.18153668]
[1728548499424,0.007634,60987.0,60986.0,0.18553668]
[1728548499841,0.007634,60987.0,60986.0,0.18353668]
[1728548500059,0.007634,60987.0,60986.0,0.18653668]
[1728548500517,0.007634,60987.0,60986.0,0.18353668]
[1728548500739,0.007634,60987.0,60986.0,0.17953668]
[1728548500982,0.007634,60987.0,60986.0,0.18453668]
[1728548501216,0.007634,60987.0,60986.0,0.19053668]
[1728548501443,0.007634,60987.0,60986.0,0.18453668]
[1728548501690,0.007634,60987.0,60986.0,0.18553668]
[1728548502902,0.007634,60987.0,60986.0,0.19053668]
[1728548507506,0.007634,60987.0,60986.0,0.28893668]
[1728548507731,0.007634,60987.0,60986.0,0.41193668]
[1728548508613,0.007634,60987.0,60986.0,0.40593668]
[1728548508860,0.007634,60987.0,60986.0,0.41993668]
[1728548509090,0.007634,60987.0,60986.0,0.40093668]
[1728548509335,0.007634,60987.0,60986.0,0.41493668]
[1728548509560,0.007634,60987.0,60986.0,0.42893668]
[1728548510034,0.007634,60987.0,60986.0,0.41493668]
[1728548510264,0.007634,60987.0,60986.0,0.42693668]
[1728548510501,0.007634,60987.0,60986.0,0.52858849]
[1728548511716,0.007634,60987.0,60986.0,0.51458849]
[1728548512178,0.007634,60987.0,60986.0,0.52858849]
[1728548512403,0.007634,60987.0,60986.0,0.51458849]
[1728548512863,0.007634,60987.0,60986.0,0.65068195]
[1728548512864,0.007634,60987.0,60986.0,0.63868195]
[1728548513091,0.007634,60987.0,60986.0,0.63668195]
[1728548513330,0.007634,60987.0,60986.0,0.65068195]
[1728548513563,0.007634,60987.0,60986.0,0.63868195]
[1728548513682,0.007634,60987.0,60986.0,0.65268195]
[1728548517779,0.007634,60987.0,60986.0,0.79951959]
[1728548518685,0.007634,60987.0,60986.0,0.78551959]
[1728548518906,0.007634,60987.0,60986.0,0.79951959]
[1728548519409,0.007634,60987.0,60986.0,0.78551959]
[1728548519636,0.007634,60987.0,60986.0,0.80446145]
[1728548519866,0.007634,60987.0,60986.0,0.81846145]
[1728548523278,0.007634,60987.0,60986.0,0.82046145]
[1728548523963,0.007634,60987.0,60986.0,0.82809545]
[1728548524232,1e-06,60987.0,60986.0,0.82809545]
[1728548524498,0.001636,60997.0,60996.0,0.163945]
[1728548524720,0.001636,60997.0,60996.0,0.6378761]
[1728548524936,0.001636,60997.0,60996.0,0.65199495]
[1728548525168,0.001636,60997.0,60996.0,0.75069495]
[1728548525861,0.001636,60997.0,60996.0,0.75563681]
[1728548526339,0.001636,60997.0,60996.0,0.76763681]
[1728548526573,0.001636,60997.0,60996.0,0.56984335]
[1728548526808,0.001636,60997.0,60996.0,0.56784335]
[1728548527261,0.001636,60997.0,60996.0,0.55784335]
[1728548527726,0.001636,60997.0,60996.0,0.57184335]
[1728548528228,0.001636,60997.0,60996.0,0.59573902]
[1728548528882,0.001636,60997.0,60996.0,0.58173902]
[1728548529094,0.001636,60997.0,60996.0,0.60673902]
[1728548529321,0.001636,60997.0,60996.0,0.59273902]
[1728548529757,0.001636,60997.0,60996.0,0.60573902]
[1728548529995,0.001636,60997.0,60996.0,0.66363902]
[1728548530246,0.001636,60997.0,60996.0,0.67169716]
[1728548530491,0.001636,60997.0,60996.0,0.68269716]
[1728548532013,0.001636,60997.0,60996.0,0.65869716]
[1728548532249,0.001636,60997.0,60996.0,0.68669716]
[1728548532485,0.001636,60997.0,60996.0,0.67269716]
[1728548532692,0.001636,60997.0,60996.0,0.65869716]
[1728548532960,0.001636,60997.0,60996.0,0.67269716]
[1728548533168,0.001636,60997.0,60996.0,0.68669716]
[1728548535400,0.001636,60997.0,60996.0,0.8789031]
[1728548535631,0.001636,60997.0,60996.0,0.8509031]
[1728548535879,0.001636,60997.0,60996.0,0.8649031]
[1728548536114,0.001636,60997.0,60996.0,0.8789031]
[1728548537504,0.001636,60997.0,60996.0,0.68669716]
[1728548537699,0.001636,60997.0,60996.0,0.8789031]
[1728548540622,0.001636,60997.0,60996.0,0.51379716]
[1728548541120,0.001636,60997.0,60996.0,0.49979716]
[1728548541586,0.001636,60997.0,60996.0,0.51379716]
[1728548545025,0.016981,60997.0,60996.0,0.51379716]
[1728548545503,0.016981,60997.0,60996.0,0.35295952]
[1728548545744,0.082436,60997.0,60996.0,0.22995952]
[1728548546226,0.09778122,60997.0,60996.0,0.22995952]
[1728548546455,0.17132329,60997.0,60996.0,0.19206385]
[1728548546923,0.17132329,60997.0,60996.0,0.17806385]
[1728548546924,0.15597807,60997.0,60996.0,0.17806385]
[1728548548096,0.15597807,60997.0,60996.0,0.19106385]
[1728548548319,0.15597807,60997.0,60996.0,0.17806385]
[1728548548569,0.15597807,60997.0,60996.0,0.18206385]
[1728548548810,0.15597807,60997.0,60996.0,0.19406385]
[1728548549281,0.13148273,60997.0,60996.0,0.18206385]
[1728548549528,0.05068273,60997.0,60996.0,0.43040205]
[1728548549779,0.001636,60997.0,60996.0,0.30906385]
[1728548550007,0.001636,60997.0,60996.0,0.46990149]
[1728548550929,0.001636,60997.0,60996.0,0.55150149]
[1728548551183,0.0169782,60997.0,60996.0,0.55150149]
[1728548553299,0.01698168,60997.0,60996.0,0.55150149]
[1728548554059,0.01698275,60997.0,60996.0,0.79983969]
[1728548554320,0.001636,60997.0,60996.0,0.64520149]
[1728548554993,0.001636,60997.0,60996.0,0.63720149]
[1728548555236,0.001636,60997.0,60996.0,0.66520149]
[1728548555472,0.001636,60997.0,60996.0,0.65120149]
[1728548555708,0.001636,60997.0,60996.0,0.63720149]
[1728548555938,0.001636,60997.0,60996.0,0.66520149]
[1728548558302,0.001636,60997.0,60996.0,0.67014335]
[1728548565245,0.001636,60997.0,60996.0,0.67214335]
[1728548568129,0.001636,60997.0,60996.0,0.73773935]
[1728548568357,0.001636,60997.0,60996.0,0.73573935]
[1728548572505,0.001636,60997.0,60996.0,0.20606385]
[1728548572757,0.01697026,60997.0,60996.0,0.20606385]
[1728548573961,0.01697026,60997.0,60996.0,0.32906385]
[1728548577999,0.001636,60997.0,60996.0,0.32906385]
[1728548578238,0.0169765,60997.0,60996.0,0.32906385]
[1728548579227,0.0169765,60997.0,60996.0,0.31506385]
[1728548579464,0.0169765,60997.0,60996.0,0.32906385]
[1728548579714,0.0169765,60997.0,60996.0,0.31506385]
[1728548579940,0.0169765,60997.0,60996.0,0.31306385]
[1728548580407,0.001636,60997.0,60996.0,0.32506385]
[1728548580644,0.01698481,60997.0,60996.0,0.32506385]
[1728548580901,0.01698481,60997.0,60996.0,0.31306385]
[1728548581130,0.01698481,60997.0,60996.0,0.32306385]
[1728548581367,0.01698481,60997.0,60996.0,0.31106385]
[1728548581829,0.01698481,60997.0,60996.0,0.32306385]
[1728548587107,0.01698531,60997.0,60996.0,0.32306385]
[1728548590602,0.001636,60997.0,60996.0,0.32306385]
[1728548590824,0.01698542,60997.0,60996.0,0.32306385]
[1728548594650,0.001636,60997.0,60996.0,0.32306385]
[1728548594899,0.01698915,60997.0,60996.0,0.32306385]
[1728548595871,0.01698915,60997.0,60996.0,0.82903969]
[1728548596123,0.001636,60997.0,60996.0,0.58070149]
[1728548596355,0.001636,60997.0,60996.0,0.66094335]
[1728548596356,1e-06,60997.0,60996.0,0.66094335]
[1728548597283,1e-06,60997.0,60996.0,0.65094335]
[1728548597540,1e-06,60997.0,60996.0,0.65294335]
[1728548598037,1e-06,60997.0,60996.0,0.79308986]
[1728548602876,1e-06,60997.0,60996.0,0.79390786]
[1728548606674,1e-06,60997.0,60996.0,0.77990786]
[1728548607130,1e-06,60997.0,60996.0,0.83150486]
[1728548607352,1e-06,60997.0,60996.0,0.84550486]
[1728548607574,0.29746899,61008.0,61007.0,0.163915]
[1728548607575,0.1483392,61008.0,61007.0,0.163915]
[1728548607812,0.04913079,61009.0,61008.0,0.286912]
[1728548608073,0.06448976,61009.0,61008.0,0.286912]
[1728548608530,0.06448976,61009.0,61008.0,0.29843729]
[1728548608777,0.06448985,61009.0,61008.0,0.29843729]
[1728548609708,0.06448985,61009.0,61008.0,0.30743729]
[1728548609950,0.04913079,61009.0,61008.0,0.30743729]
[1728548610209,0.06449006,61009.0,61008.0,0.30743729]
[1728548610448,0.06449456,61009.0,61008.0,0.30743729]
[1728548610712,0.06449456,61009.0,61008.0,0.31843729]
[1728548610955,0.06449456,61009.0,61008.0,0.30743729]
[1728548611185,0.06449456,61009.0,61008.0,0.32043729]
[1728548611433,0.06449456,61009.0,61008.0,0.31143729]
[1728548611940,0.06449456,61009.0,61008.0,0.32243729]
[1728548612198,0.05849456,61009.0,61008.0,0.32243729]
[1728548613319,0.00935927,61009.0,61008.0,0.32243729]
[1728548614739,0.00935927,61009.0,61008.0,0.34675786]
[1728548614969,0.00935927,61009.0,61008.0,0.34757586]
[1728548615212,0.01099527,61009.0,61008.0,0.34757586]
[1728548616168,0.001636,61009.0,61008.0,0.34757586]
[1728548622287,0.18306524,61009.0,61008.0,0.34757586]
[1728548623355,0.09993417,61009.0,61008.0,0.34757586]
[1728548623583,0.28136341,61009.0,61008.0,0.34757586]
[1728548624019,0.001636,61009.0,61008.0,0.34757586]
[1728548624237,0.01701117,61009.0,61008.0,0.34757586]
[1728548625837,0.2967525,61009.0,61008.0,0.34757586]
[1728548626739,0.01701117,61009.0,61008.0,0.34757586]
[1728548627439,0.01702215,61009.0,61008.0,0.34757586]
[1728548630000,0.03240901,61009.0,61008.0,0.34757586]
[1728548633611,0.03240901,61009.0,61008.0,0.44577586]
[1728548633845,0.01702215,61009.0,61008.0,0.44577586]
[1728548634070,0.03240904,61009.0,61008.0,0.44577586]
[1728548634286,0.01702215,61009.0,61008.0,0.44577586]
[1728548635887,0.09078797,61009.0,61008.0,0.44577586]
[1728548636132,0.09078815,61009.0,61008.0,0.44577586]
[1728548637059,0.01702215,61009.0,61008.0,0.44577586]
[1728548637541,0.0662044,61009.0,61008.0,0.44577586]
[1728548638062,0.0662044,61009.0,61008.0,0.43277586]
[1728548638535,0.0662044,61009.0,61008.0,0.44677586]
[1728548638768,0.0662044,61009.0,61008.0,0.43577586]
[1728548638988,0.01702215,61009.0,61008.0,0.44977586]
[1728548639807,0.0662044,61009.0,61008.0,0.44977586]
[1728548640465,0.06619298,61009.0,61008.0,0.44977586]
[1728548641459,0.06620914,61009.0,61008.0,0.44977586]
[1728548642099,0.06620914,61009.0,61008.0,0.6106135]
[1728548642335,0.01701073,61009.0,61008.0,0.6106135]
[1728548644762,0.01701073,61009.0,61008.0,0.58629293]
[1728548646448,0.01700346,61009.0,61008.0,0.58629293]
[1728548646695,0.001636,61009.0,61008.0,0.58629293]
[1728548647177,0.01700307,61009.0,61008.0,0.58629293]
[1728548649680,0.01700205,61009.0,61008.0,0.58629293]
[1728548651798,0.01700205,61009.0,61008.0,0.71243944]
[1728548653140,0.01700199,61009.0,61008.0,0.71243944]
[1728548656205,0.001636,61009.0,61008.0,0.71243944]
[1728548656420,0.01700338,61009.0,61008.0,0.71243944]
[1728548656630,0.001636,61009.0,61008.0,0.71243944]
[1728548656867,0.01700356,61009.0,61008.0,0.71243944]
[1728548659607,0.001636,61009.0,61008.0,0.71243944]
[1728548659850,0.01700602,61009.0,61008.0,0.71243944]
[1728548660303,0.01700602,61009.0,61008.0,0.5516018]
[1728548660529,0.01700602,61009.0,61008.0,0.4534018]
[1728548661440,0.06617797,61009.0,61008.0,0.4534018]
[1728548662369,0.06618407,61009.0,61008.0,0.4534018]
[1728548665608,0.06618407,61009.0,61008.0,0.5454018]
[1728548665845,0.06618407,61009.0,61008.0,0.78583944]
[1728548666326,0.01700602,61009.0,61008.0,0.78583944]
[1728548668534,0.01700602,61009.0,61008.0,0.77183944]
[1728548668750,0.01700602,61009.0,61008.0,0.75783944]
[1728548668968,0.01700602,61009.0,61008.0,0.77183944]
[1728548669387,0.01700602,61009.0,61008.0,0.78583944]
[1728548669609,0.01700602,61009.0,61008.0,0.77183944]
[1728548670050,0.01700602,61009.0,61008.0,0.78583944]
[1728548670505,0.01700602,61009.0,61008.0,0.77183944]
[1728548670933,0.01700602,61009.0,61008.0,0.78583944]
[1728548672899,0.01701917,61009.0,61008.0,0.78583944]
[1728548673321,0.01701917,61009.0,61008.0,0.77183944]
[1728548673592,0.01701917,61009.0,61008.0,1.02017764]
[1728548673831,0.01701917,61009.0,61008.0,0.83874258]
[1728548674078,0.01701917,61009.0,61008.0,0.7907813]
[1728548674308,0.001636,61009.0,61008.0,0.7767813]
[1728548674732,0.001636,61009.0,61008.0,0.7907813]
[1728548674976,0.001636,61009.0,61008.0,0.7767813]
[1728548675868,0.001636,61009.0,61008.0,0.7907813]
[1728548676081,0.001636,61009.0,61008.0,0.7767813]
[1728548676545,0.001636,61009.0,61008.0,0.7907813]
[1728548676994,0.001636,61009.0,61008.0,0.7627813]
[1728548677206,0.001636,61009.0,61008.0,0.7767813]
[1728548677901,0.001636,61009.0,61008.0,0.7627813]
[1728548678114,0.001636,61009.0,61008.0,0.7767813]
[1728548678337,0.001636,61009.0,61008.0,0.7907813]
[1728548678533,0.001636,61009.0,61008.0,0.7627813]
[1728548678753,0.001636,61009.0,61008.0,0.7767813]
[1728548678978,0.001636,61009.0,61008.0,0.7907813]
[1728548679203,0.001636,61009.0,61008.0,0.7767813]
[1728548679423,0.001636,61009.0,61008.0,0.7907813]
[1728548680332,0.001636,61009.0,61008.0,0.7767813]
[1728548680987,0.001636,61009.0,61008.0,0.7907813]
[1728548682387,0.001636,61009.0,61008.0,0.81456581]
[1728548693543,0.001636,61009.0,61008.0,0.6884193]
[1728548693766,0.001636,61009.0,61008.0,0.81456581]
[1728548702333,0.01701158,61009.0,61008.0,0.81456581]
[1728548703316,0.001636,61009.0,61008.0,0.81456581]
[1728548703413,0.01701796,61009.0,61008.0,0.81456581]
[1728548704362,0.01701796,61009.0,61008.0,0.6884193]
[1728548704812,0.01701796,61009.0,61008.0,0.81456581]
[1728548705781,0.01701756,61009.0,61008.0,0.81456581]
[1728548707140,0.01701756,61009.0,61008.0,0.73496581]
[1728548708323,0.01701756,61009.0,61008.0,0.6088193]
[1728548708539,0.01701756,61009.0,61008.0,0.73496581]
[1728548708774,0.017017,61009.0,61008.0,0.73496581]
[1728548712578,0.001636,61009.0,61008.0,0.73496581]
[1728548717800,0.001636,61009.0,61008.0,0.81026581]
[1728548718278,0.001636,61009.0,61008.0,0.6841193]
[1728548718639,0.001636,61009.0,61008.0,0.81026581]
[1728548718972,0.001636,61009.0,61008.0,0.79626581]
[1728548719216,0.001636,61009.0,61008.0,0.81026581]
[1728548719446,0.001636,61009.0,61008.0,0.79626581]
[1728548719689,0.001636,61009.0,61008.0,0.81026581]
[1728548720155,0.001636,61009.0,61008.0,0.79626581]
[1728548720604,0.001636,61009.0,61008.0,0.81026581]
[1728548728877,0.001636,61009.0,61008.0,0.79626581]
[1728548729359,0.001636,61009.0,61008.0,0.81026581]
[1728548729588,0.001636,61009.0,61008.0,0.79626581]
[1728548730523,0.001636,61009.0,61008.0,0.81026581]
[1728548731017,0.01844081,61016.0,61012.0,0.12794186]
[1728548731233,0.004,61021.0,61020.0,0.36928]
[1728548731507,0.004,61021.0,61020.0,0.5350595]
[1728548731751,0.004,61021.0,61020.0,0.90988435]
[1728548732431,0.004,61021.0,61020.0,0.92388435]
[1728548733096,0.004,61021.0,61020.0,1.02058435]
[1728548733328,0.004,61021.0,61020.0,1.03458435]
[1728548733329,0.002,61021.0,61020.0,1.03458435]
[1728548733773,0.002,61021.0,61020.0,1.02058435]
[1728548734254,0.002,61021.0,61020.0,1.03458435]
[1728548735178,0.002,61021.0,61020.0,1.02058435]
[1728548735396,0.002,61021.0,61020.0,1.14251534]
[1728548735619,0.07375869,61034.0,61023.0,0.00494186]
[1728548735837,0.07375869,61035.0,61034.0,0.163843]
[1728548736297,0.07375869,61036.0,61035.0,0.18684]
[1728548736543,0.07375869,61036.0,61035.0,0.30874678]
[1728548737009,0.07375869,61038.0,61037.0,0.186835]
[1728548737229,0.0764,61039.0,61037.0,0.186835]
[1728548737447,0.0764,61039.0,61038.0,0.186832]
[1728548737680,0.0764,61039.0,61038.0,0.19586388]
[1728548737957,0.0804,61039.0,61038.0,0.19586388]
[1728548738210,0.15405009,61039.0,61038.0,0.19586388]
[1728548739357,0.081218,61039.0,61038.0,0.19586388]
[1728548739808,0.081218,61039.0,61038.0,0.20986388]
[1728548740048,0.081218,61039.0,61038.0,0.22186388]
[1728548740512,0.171818,61039.0,61038.0,0.22186388]
[1728548741207,0.24546809,61039.0,61038.0,0.22186388]
[1728548741922,0.24546809,61039.0,61038.0,0.24603827]
[1728548743334,0.171818,61039.0,61038.0,0.24603827]
[1728548744245,0.171818,61039.0,61038.0,0.22186388]
[1728548744463,0.2454044,61039.0,61038.0,0.22186388]
[1728548744677,0.35290956,61039.0,61038.0,0.22186388]
[1728548745343,0.171818,61039.0,61038.0,0.22186388]
[1728548746286,0.27003716,61039.0,61038.0,0.22186388]
[1728548746516,0.45112183,61039.0,61038.0,0.22186388]
[1728548746746,0.18714565,61039.0,61038.0,0.22186388]
[1728548746972,0.4663365,61039.0,61038.0,0.22186388]
[1728548750184,0.36822688,61039.0,61038.0,0.22186388]
[1728548752034,0.36823248,61039.0,61038.0,0.22186388]
[1728548753889,0.4663421,61039.0,61038.0,0.22186388]
[1728548755238,0.46634899,61039.0,61038.0,0.22186388]
[1728548756657,0.46634458,61039.0,61038.0,0.20986388]
[1728548757200,0.37574458,61039.0,61038.0,0.19586388]
[1728548757459,0.37574458,61039.0,61038.0,0.20386388]
[1728548757956,0.37574458,61039.0,61038.0,0.20986388]
[1728548758443,0.36040444,61039.0,61038.0,0.04603188]
[1728548758694,0.37576017,61039.0,61038.0,0.04603188]
[1728548759172,0.37576017,61039.0,61038.0,0.20986388]
[1728548759621,0.37576017,61039.0,61038.0,0.20386388]
[1728548759835,0.37576017,61039.0,61038.0,0.20886388]
[1728548760079,0.37576017,61039.0,61038.0,0.20086388]
[1728548760559,0.37576017,61039.0,61038.0,0.20586388]
[1728548761316,0.37579344,61039.0,61038.0,0.20586388]
[1728548762039,0.36042563,61039.0,61038.0,0.20586388]
[1728548762281,0.37579654,61039.0,61038.0,0.20586388]
[1728548763019,0.69483392,61039.0,61038.0,0.01903188]
[1728548763254,0.69483392,61039.0,61026.0,0.098]
[1728548763255,0.1716,61038.0,61034.0,0.163841]
[1728548763487,0.1716,61038.0,61021.0,0.21830678]
[1728548763488,0.19644928,61037.0,61033.0,0.163845]
[1728548763711,0.335433,61038.0,61031.0,0.327701]
[1728548763712,0.19644928,61036.0,61035.0,0.00730907]
[1728548763948,0.19644928,61036.0,61035.0,0.16384]
[1728548764407,0.19644928,61036.0,61035.0,0.1711669]
[1728548764686,0.19654947,61036.0,61035.0,0.1941669]
[1728548764918,0.19654947,61036.0,61035.0,0.0303269]
[1728548765147,0.19654947,61036.0,61035.0,0.1941669]
[1728548765289,0.19654947,61036.0,61035.0,0.1971669]
[1728548765887,0.19654947,61036.0,61035.0,0.0333269]
[1728548766107,0.19654947,61036.0,61035.0,0.0353269]
[1728548766987,0.36038647,61036.0,61035.0,0.0353269]
[1728548767209,0.19654947,61036.0,61035.0,0.028]
[1728548767422,0.19654947,61036.0,61035.0,0.0353269]
[1728548769207,0.37780207,61036.0,61035.0,0.0353269]
[1728548769427,0.19662351,61036.0,61035.0,0.0353269]
[1728548770815,0.19660808,61036.0,61035.0,0.0353269]
[1728548773285,0.19660808,61036.0,61035.0,0.1991669]
[1728548773529,0.19660808,61036.0,61035.0,0.0353269]
[1728548773961,0.19660784,61036.0,61035.0,0.0353269]
[1728548774128,0.19668167,61036.0,61035.0,0.0369609]
[1728548774352,0.19668225,61036.0,61035.0,0.0369609]
[1728548776295,0.19668225,61036.0,61035.0,0.029634]
[1728548776518,0.86569795,61036.0,61035.0,0.006634]
[1728548776742,1.18236234,61036.0,61035.0,0.006634]
[1728548776983,1.18236234,61036.0,61019.0,0.0806]
[1728548776984,0.163858,61029.0,61022.0,0.2980243]
[1728548777231,0.14738201,61026.0,61023.0,0.327744]
[1728548777468,0.34406669,61025.0,61024.0,0.163869]
[1728548778157,0.31859146,61025.0,61024.0,0.163869]
[1728548778607,0.31859146,61025.0,61023.0,0.007]
[1728548778608,0.62681111,61025.0,61023.0,0.007]
[1728548778860,0.19668468,61024.0,61023.0,0.163872]
[1728548779093,0.34406669,61024.0,61009.0,0.0776]
[1728548779328,0.34406669,61024.0,61016.0,0.493309]
[1728548779329,0.04910126,61017.0,61016.0,0.493309]
[1728548779569,0.06445951,61017.0,61016.0,0.493309]
[1728548780000,0.06445951,61017.0,61016.0,0.516309]
[1728548780255,0.01535825,61017.0,61016.0,0.516309]
[1728548780491,0.01735825,61017.0,61016.0,0.516309]
[1728548780726,0.01835825,61017.0,61016.0,0.526309]
[1728548781436,0.03246939,61017.0,61016.0,0.526309]
[1728548781668,0.03246939,61017.0,61016.0,0.535309]
[1728548781669,0.01935825,61017.0,61016.0,0.535309]
[1728548783052,0.14126503,61017.0,61016.0,0.020636]
[1728548783293,0.42400945,61017.0,61016.0,0.020636]
[1728548783520,0.40947402,61017.0,61016.0,0.020636]
[1728548783753,0.49839514,61017.0,61016.0,0.020636]
[1728548783995,0.49639514,61017.0,61016.0,0.001636]
[1728548784235,0.49639514,61017.0,61016.0,0.006636]
[1728548784236,0.42280566,61017.0,61016.0,0.006636]
[1728548784469,0.42280566,61017.0,61016.0,0.010636]
[1728548784707,0.42280566,61017.0,61016.0,0.005636]
[1728548785149,0.42280566,61017.0,61016.0,0.008636]
[1728548785817,0.42280566,61017.0,61016.0,0.172527]
[1728548786270,0.47183712,61017.0,61016.0,0.008636]
[1728548786969,0.47183027,61017.0,61016.0,0.008636]
[1728548787687,0.002,61017.0,61016.0,0.41743378]
[1728548787933,0.002,61017.0,61016.0,1.06112162]
[1728548788181,1e-06,61017.0,61016.0,0.81772528]
[1728548788860,0.001634,61036.0,61035.0,0.18684]
[1728548789130,0.001634,61036.0,61035.0,0.46404]
[1728548789383,1e-06,61036.0,61035.0,0.6298195]
[1728548789862,1e-06,61036.0,61035.0,1.16649206]
[1728548790074,1e-06,61039.0,61038.0,0.46437386]
[1728548790296,1e-06,61039.0,61038.0,1.11283862]
[1728548790546,1e-06,61039.0,61038.0,0.6252115]
[1728548791249,1e-06,61039.0,61038.0,0.6392115]
[1728548791487,1e-06,61039.0,61038.0,0.6252115]
[1728548791728,1e-06,61039.0,61038.0,1.18220134]
[1728548792678,1e-06,61039.0,61038.0,1.36786462]
[1728548792904,1e-06,61039.0,61038.0,1.38186462]
[1728548793149,1e-06,61039.0,61038.0,1.36786462]
[1728548793384,1e-06,61039.0,61038.0,1.39586462]
[1728548793604,1e-06,61039.0,61038.0,0.83887478]
[1728548793834,1e-06,61039.0,61038.0,0.82487478]
[1728548794063,1e-06,61039.0,61038.0,0.83887478]
[1728548794301,1e-06,61039.0,61038.0,0.82687478]
[1728548794739,1e-06,61039.0,61038.0,0.84087478]
[1728548794952,1e-06,61039.0,61038.0,0.83887478]
[1728548797862,1e-06,61039.0,61038.0,0.84087478]
[1728548798092,1e-06,61039.0,61038.0,0.84250878]
[1728548798326,1e-06,61039.0,61038.0,0.84050878]
[1728548798539,1e-06,61039.0,61038.0,0.90605978]
[1728548799199,1e-06,61039.0,61038.0,0.90805978]
[1728548799468,1e-06,61039.0,61038.0,0.90605978]
[1728548799953,1e-06,61039.0,61038.0,0.90805978]
[1728548804258,1e-06,61039.0,61038.0,0.90605978]
[1728548806117,1e-06,61039.0,61038.0,0.90805978]
[1728548808944,1e-06,61039.0,61038.0,0.7203965]
[1728548810279,1e-06,61039.0,61038.0,0.89205978]
[1728548810647,1e-06,61039.0,61038.0,0.90605978]
[1728548811082,1e-06,61039.0,61038.0,0.89405978]
[1728548811258,1e-06,61039.0,61038.0,0.88005978]
[1728548811472,1e-06,61039.0,61038.0,0.87805978]
[1728548811678,1e-06,61039.0,61038.0,0.89205978]
[1728548812044,0.001001,61039.0,61038.0,0.90605978]
[1728548812256,0.001,61039.0,61038.0,0.89205978]
[1728548812469,0.002,61039.0,61038.0,1.6487129]
[1728548812912,0.001,61039.0,61038.0,1.6347129]
[1728548813332,0.002,61039.0,61038.0,1.6487129]